Workbook

Sheet Div.10
D4: BILL No 02
D5: جدول رقم - 02
A6: ITEM | B6: DESCRIPTION | C6: الإجمالي كتابة | D6: الإجمالي رقمًا | E6: السعر | F6: الوحدة | G6: الكمية | H6: الـــوصــــف | I6: البند
C7: Total in words (SR) | D7: Total in figures | E7: RATE | F7: UNIT | G7: QTY
A9: 10 | B9: DIVISION 10 -SPECIALTIES | H9: القسم العاشر - الأعمال الخاصة | I9: =A9 -> 10
I10: 0
B11: Price of all items includes supplying and | F11: Note | H11: سعر جميع البنود يشمل التوريد والتركيب
B12: installation
B14: TOILET AND BATH ACCESSORIES | H14: لوازم الحمامات ودورات المياه | I14: 0
I15: 0
A16: 10.1 | B16: Supply and installation of following toilet and | H16: توريد وتركيب لوازم الحمامات ودورات المياه التالية حسب | I16: 10.1
B17: bath accessories as per schedule from specified | H17: جدول الاختيار من المورد المذكور في وثائق المشروع أو | I17: 0
B18: manufacturers mentioned in project documents | H18: المعتمد مما يماثلها شاملا ذلك مواد التثبيت والتزيين حسب | I18: 0
B19: or approved equal including fixings and trims | H19: الموضح بالمخططات والمواصفات لملائمة المواقع حسب | I19: 0
B20: as shown on drawings and specification to suit | H20: المطلوب
B21: locations as required | I21: 0
A22: 10.1.1 | B22: Ref. (SW03), illuminated mirror | D22: =G22*E22 -> 31400 | E22: 200 | F22: No | G22: 157 | H22: مرجع (SW03) مرآة مضيئة ماركة: Geesa، موديل | I22: 10.1.1
B23: , brand: Geesa, model: Genova illuminated mirror | H23: :Genova illuminated mirror | I23: 0
I24: 0
A25: 10.1.2 | B25: Ref. (SW06), Toilet paper holder, brand: Grohe, | D25: =G25*E25 -> 0 | F25: No | G25: 159 | H25: مرجع (SW06) حامل ورق تواليت ، ماركة: Grohe ، | I25: 10.1.2
B26: model: Essentials cube | H26: موديل Essentials cube | I26: 0
I27: 0
A28: 10.1.3 | B28: Ref. (SW07), Reserve Toilet paper holder, brand: | D28: =G28*E28 -> 0 | F28: No | G28: 182 | H28: مرجع (SW07) حامل ورق تواليت حافظ، ماركة: | I28: 10.1.3
B29: Grohe, model: Selection Cube | H29: Grohe ، موديل Selection Cube | I29: 0
I30: 0
A31: 10.1.4 | B31: Ref. (SW08), towel rail, brand: Grohe, model: | D31: =G31*E31 -> 16100 | E31: 100 | F31: No | G31: 161 | H31: مرجع (SW08) قضيب منشفة، ماركة: | I31: 10.1.4
B32: Selection Cube 600 mm | H32: Grohe ، موديل Selection Cube 600 mm | I32: 0
I33: 0
B35: To Collection | D35: =SUM(Div.10!D8:D34) -> 47500 | H35: المجموع المرحل | I35: 0
I36: 0
I37: 0
B38: TOILET AND BATH ACCESSORIES | H38: لوازم الحمامات ودورات المياه | I38: 0
I39: 0
A40: 10.1.5 | B40: Ref. (SW09), Robe Hooks, brand: Grohe, model: | D40: =G40*E40 -> 112200 | E40: 600 | F40: No | G40: 187 | H40: مرجع (SW09) خطاف تعليق الملابس ، ماركة: | I40: 10.1.5
B41: Selection Cube | H41: Grohe ، موديل Selection Cube | I41: 0
A43: 10.1.6 | B43: Ref. (SW10), Grip bar, brand: Kohler, model: | D43: =G43*E43 -> 0 | F43: No | G43: 159 | H43: مرجع (SW10) مسند، ماركة: Kohler ، موديل | I43: 10.1.6
B44: GROHE StarLight | H44: GROHE StarLight | I44: 0
I45: 0
A46: 10.1.7 | B46: Ref. (SW14), Trash Bin, brand: Geesa, model: | D46: =G46*E46 -> 90500 | E46: 500 | F46: No | G46: 181 | H46: مرجع (SW14) سلة قمامة، ماركة: | I46: 10.1.7
B47: Geesa Pedal Bin 5 L | H47: Geesa ، موديل Geesa Pedal Bin 5 L | I47: 0
I48: 0
A49: 10.1.8 | B49: Ref. (SW15), Tower ring, brand: Grohe, model: | D49: =G49*E49 -> 0 | F49: No | G49: 159 | H49: مرجع (SW15) حامل منشفة، ماركة: | I49: 10.1.8
B50: Essentials Cube | H50: Grohe ، موديل: Essentials Cube | I50: 0
I51: 0
A52: 10.1.9 | B52: Ref. (SW23), Toilet paper holder, brand: Grohe, | D52: =G52*E52 -> 10000 | E52: 400 | F52: No | G52: 25 | H52: مرجع (SW23) حامل ورق تواليت ، ماركة: Grohe ، | I52: 10.1.9
B53: model: Selection Cube | H53: موديل Selection Cube | I53: 0
I54: 0
A55: 10.1.10 | B55: Ref. (SW27), Grip bar , brand: Grohe, model: | D55: =G55*E55 -> 1500 | E55: 100 | F55: No | G55: 15 | H55: مرجع (SW27) مسند ، ماركة: Grohe ، | I55: 10.1.10
B56: Essentials | H56: موديل Essentials | I56: 0
I57: 0
A58: 10.1.11 | B58: Ref. (SW28), Hinged Arm Grab Bar Rail , brand: | D58: =G58*E58 -> 0 | F58: No | G58: 32 | H58: مرجع (SW28) مسند بذراع مفصلية ، ماركة: Vitra ، | I58: 10.1.11
B59: Vitra, model: Access | H59: موديل Access | I59: 0
I60: 0
I61: 0
B62: To Collection | D62: =SUM(Div.10!D38:D61) -> 214200 | H62: المجموع المرحل | I62: 0
I63: 0
I64: 0
B65: TOILET AND BATH ACCESSORIES | H65: لوازم الحمامات ودورات المياه | I65: 0
I66: 0
A67: 10.1.12 | B67: Ref. (SW29), Recessed Paper Towel Dispenser | D67: =G67*E67 -> 50 | E67: 50 | F67: No | G67: 1 | H67: مرجع (SW29) منشفة ورقية ومجفف أيدي وسلة مخلفات ، | I67: 10.1.12
B68: /Automatic Hand Dryer /Waste Receptacle , | H68: موديل TrimLineSeries | I68: 0
B69: , model: TrimLineSeries | I69: 0
I70: 0
A71: 10.1.13 | B71: Ref. (SW33), Hinged Arm Shower Seat , brand: | D71: =G71*E71 -> 120 | E71: 60 | F71: No | G71: 2 | H71: مرجع (SW33) مقعد دش بذراع مفصلية، ماركة: Vitra | I71: 10.1.13
B72: Vitra | I72: 0
I73: =A73 -> 0
A74: 10.1.14 | B74: Ref. (SW34), Hand Dryer , brand: Bobric | D74: =G74*E74 -> 20 | E74: 10 | F74: No | G74: 2 | H74: مرجع (SW34) مجفف أيدي ، ماركة: Bobric | I74: 10.1.14
I75: 0
A76: 10.2 | B76: OPERABLE PARTITION | H76: قواطيع متحركة | I76: 10.2
I77: 0
A78: 10.2.1 | B78: Operable partition comprising individual wooden | D78: =G78*E78 -> 120 | E78: 60 | F78: No | G78: 2 | H78: قواطع متحركة تتكون من ألواح خشبية مفردة بكسوة مرجع | I78: 10.2.1
B79: panels Ref.WD01, Wood Veneer, Spec : 10 mm | H79: WD01، قشرة خشب، المواصفات MDF سمك 10 مم مع | I79: 0
B80: thick, MDF in wood veneer semi-gloss finish Code | H80: قشرة خشب بتشطيب نصف لامع ، الكود American | I80: 0
B81: American walnut veneer ALPIlignum10.19 by Alpi , | H81: walnut veneer ALPIlignum10.19 من Alpi ، | I81: 0
B82: Size : Refer to dwg.Color : Smoked Walnut, By | H82: المقاس : ارجع غلى المخططات ، اللون Smoked | I82: 0
B83: Alpi Showroom | H83: Walnut من Alpi Showroom | I83: 0
B84: size 11100x 3000mm height | H84: مقاس 11100 ×3000 مم ارتفاع
B85: to suit meeting rooms | H85: لتناسب غرف الاجتماعات
B89: To Collection | D89: =SUM(Div.10!D65:D88) -> 310 | H89: المجموع المرحل | I89: =A89 -> 0
B92: Collection | H92: المجموع
B94: Sheet -1 | D94: 47500 | H94: صفحة - 1
B96: Sheet -2 | D96: 214200 | H96: صفحة - 2
B98: Sheet -3 | D98: 310 | H98: صفحة - 3
B116: To Bill Summary | D116: =SUM(D92:D115) -> 262010 | H116: المجموع المرحل إلى ملخص جدول الكميات

Sheet Div.22
D4: BILL No 02
D5: جدول رقم - 02
A6: ITEM | B6: DESCRIPTION | C6: الإجمالي كتابة | D6: الإجمالي رقمًا | E6: السعر | F6: الوحدة | G6: الكمية | H6: الـــوصــــف | I6: البند
C7: Total in words (SR) | D7: Total in figures | E7: RATE | F7: UNIT | G7: QTY
A9: 22 | B9: DIVISION 22: MECHANICAL WORK - | H9: القسم إثنين وعشرون: الأعمال الميكانيكية - | I9: =A9 -> 22
B10: PLUMBING | H10: الأعمال الصحية | I10: 0
I11: 0
B12: Price of all items includes supplying and | F12: Note | H12: سعر جميع البنود يشمل التوريد والتركيب
B13: installation
A15: 22.1 | B15: Supply, install sanitary wares and fixtures from | H15: توريد وتركيب الأدوات والأجهزة الصحية من المورد المذكور | I15: 22.1
B16: specified manufacturers mentioned in project | H16: في وثائق المشروع أو المعتمد مما يماثلها بما في ذلك | I16: 0
B17: documents or approved equal including traps, | H17: المصائد والأنابيب والمحابس والمواسير القصيرة لإمداد المياه | I17: 0
B18: spouts, valves and short lengths of water supply | H18: للملحقات والتركيبات اللازمة وما شابة حسب المخططات | I18: 0
B19: pipes, all fittings, accessories, trims and the like | H19: والمواصفات | I19: 0
B20: as on drawing and as per specification | I20: 0
A22: 22.1.1 | B22: Ref. (SW01), Faucet (Single-lever basin mixer | D22: =G22*E22 -> 8250 | E22: 50 | F22: No | G22: 165 | H22: مرجع (SW01) خلاط حوض Single-lever basin | I22: =A22 -> 22.1.1
B23: 1/2" S-size) , brand: Grohe, model: lineare | H23: mixer 1/2" S-size ماركة Grohe، موديل : lineare | I23: 0
I24: 0
A25: 22.1.2 | B25: Ref. (SW02), Semi-recessed basin , brand: | D25: =G25*E25 -> 7650 | E25: 90 | F25: No | G25: 85 | H25: مرجع (SW02) حوض semi-recessed ماركة | I25: 22.1.2
B26: Grohe, model: Eurocube | H26: Grohe، موديل : Eurocube | I26: 0
I27: 0
A28: 22.1.3 | B28: Ref. (SW04), Toilet set | D28: =G28*E28 -> 15900 | E28: 100 | F28: No | G28: 159 | H28: مرجع (SW04) مجموعة مرحاض | I28: 22.1.3
I29: 0
A30: 22.1.4 | B30: Ref. (SW05), Wall holder spray, brand: Grohe, | D30: =G30*E30 -> 46000 | E30: 250 | F30: No | G30: 184 | H30: مرجع (SW05) مجموعة رشاش علي الحائط ماركة | I30: 22.1.4
B31: model: Tempesta -F Trigger spray 30 | H31: Grohe، موديل : Tempesta -F Trigger spray 30 | I31: 0
I32: 0
A33: 22.1.5 | B33: Ref. (SW11), shower set, brand: Grohe | D33: =G33*E33 -> 6450 | E33: 50 | F33: No | G33: 129 | H33: مرجع (SW11) مجموعة دش ماركة Grohe | I33: 22.1.5
B36: To Collection | H36: المجموع المرحل | I36: 0
I37: 0
I38: 0
A39: 22.1 | B39: Sanitary wares and fixtures | H39: الأدوات والأجهزة الصحية | I39: 22.1
I40: 0
A41: 22.1.6 | B41: Ref. (SW12), Floor drain, brand: Aquazone UK, | D41: =G41*E41 -> 0 | F41: No | G41: 190 | H41: مرجع (SW12) بالوعة أرضية ماركة Aquazone | I41: 22.1.6
B42: model: Aquadrain | H42: UK، موديل :Aquadrain | I42: 0
I43: 0
A44: 22.1.7 | B44: Ref. (SW13), linear Floor drain, brand: Nicoll, | D44: =G44*E44 -> 0 | F44: No | G44: 129 | H44: مرجع (SW13) بالوعة أرضية طولية ماركة Nicoll ، | I44: 22.1.7
B45: model: Docia | H45: موديل :Docia | I45: 0
I46: 0
A47: 22.1.8 | B47: Ref. (SW16), bathhub (750x1500mm drop in bath | D47: =G47*E47 -> 0 | F47: No | G47: 30 | H47: مرجع (SW16) بانيو مقاس 750 × 1500 مم ماركة | I47: 22.1.8
B48: , brand: Vitra, model: Rectangular bathhub | H48: Vitra ، موديل :Rectangular bathhub | I48: 0
I49: 0
A50: 22.1.9 | B50: Ref. (SW17), Rain Shower , brand: Grohe, model: | D50: =G50*E50 -> 0 | F50: No | G50: 30 | H50: مرجع (SW17) Rain Shower ماركة Grohe ، موديل | I50: 22.1.9
B51: Eurocube | H51: :Eurocube | I51: 0
I52: 0
A53: 22.1.10 | B53: Ref. (SW19), Faucet (infra-red electronic basin | D53: =G53*E53 -> 0 | F53: No | G53: 16 | H53: مرجع (SW19) خلاط يعمل بالأشعة تحت الحمراء مع جهاز | I53: 22.1.10
B54: mixer 1/2"wall mounted , brand: Grohe, | H54: خلط 1/2 بوصة معلق بالحائط ماركة Grohe، موديل : | I54: 0
B55: model: Allure E | H55: Allure E | I55: 0
I56: 0
A57: 22.1.11 | B57: Ref. (SW20), Freestanding washbasin, | D57: =G57*E57 -> 0 | F57: No | G57: 16 | H57: مرجع (SW20) Freestanding washbasin, | I57: 22.1.11
B58: brand: RIFRA, model: SMOOTH | Washbasin | H58: ماركة : RIFRA, موديل SMOOTH | Washbasin | I58: 0
I59: 0
A60: 22.1.12 | B60: Ref. (SW21), Toilet set, | D60: =G60*E60 -> 0 | F60: No | G60: 25 | H60: مرجع (SW21) مجموعة مرحاض | I60: 22.1.12
I61: 0
B62: To Collection | H62: المجموع المرحل | I62: 0
I63: 0
I64: 0
A65: 22.1 | B65: Sanitary wares and fixtures | H65: الأدوات والأجهزة الصحية | I65: 22.1
I66: 0
A68: 22.1.13 | B68: Ref. (SW22), Urinal set, | D68: =G68*E68 -> 0 | F68: No | G68: 6 | H68: مرجع (SW22) مجموعة مبولة | I68: =A68 -> 22.1.13
I69: 0
A70: 22.1.14 | B70: Ref. (SW30), hrome wall mounted SL 2 hole | D70: =G70*E70 -> 0 | F70: No | G70: 3 | H70: مرجع (SW30) خلاط مثبت علي الحائط بفتحتين | I70: 22.1.14
B71: basin mixer, brand: Grohe, model: lineare | H71: للخلاطات ماركة Grohe، موديل : lineare | I71: 0
I72: 0
A73: 22.1.15 | B73: Ref. (SW31), wash basin (undercounter basin, 48 | D73: =G73*E73 -> 0 | F73: No | G73: 8 | H73: مرجع (SW31) حوض للغسل undercounter basin, | I73: =A73 -> 22.1.15
B74: cm without tap hole, with side holes brand: Vitra, | H74: 48cm without tap hole, with side holes ماركة | I74: 0
B75: model: S50 | H75: Vitra موديل : S50 | I75: 0
I76: 0
A77: 22.1.16 | B77: Ref. (SW32), | D77: =G77*E77 -> 0 | F77: No | G77: 74 | H77: مرجع (SW32) | I77: 22.1.16
A79: 22.1.17 | B79: Ref. (SW35), | D79: =G79*E79 -> 0 | F79: No | G79: 3 | H79: مرجع (SW35) | I79: 22.1.17
A81: 22.1.18 | B81: Ref. (SW36), | D81: =G81*E81 -> 0 | F81: No | G81: 3 | H81: مرجع (SW36) | I81: 22.1.18
A83: 22.1.19 | B83: Sink 420mm x 420mm | D83: =G83*E83 -> 0 | F83: No | G83: 58 | H83: حوض بابعاد 420مم × 420 مم | I83: 22.1.19
B88: To Collection | H88: المجموع المرحل
B91: Collection | H91: المجموع
B93: Sheet -1 | H93: صفحة - 1
B95: Sheet -2 | H95: صفحة - 2
B97: Sheet -3 | H97: صفحة - 3
B114: To Bill Summary | H114: المجموع المرحل إلى ملخص جدول الكميات

Sheet Bill-Summary
D4: BILL No 02
D5: جدول رقم - 02
A6: ITEM | C6: DESCRIPTION | D6: الإجمالي ر.س | E6: الـــوصــــف | G6: البند
D7: TOTAL S.R
B9: BILL SUMMARY | F9: ملخص الجدول
B11: DIVISION 6 | C11: WOOD, PLASTICS, AND COMPOSITES | E11: الخشب واللدائن والمواد المركبة | F11: القسم السادس
B13: DIVISION 8 | C13: OPENINGS | D13: =F13*H13 ->  | E13: أعمال الفتحات | F13: القسم الثامن
B15: DIVISION 9 | C15: FINISHES | D15: =F15*H15 ->  | E15: التشطيب | F15: القسم التاسع
B17: DIVISION 10 | C17: SPECIALITIES | D17: =Div.10!D116 -> 262010 | E17: الأعمال الخاصة | F17: القسم العاشر
B19: DIVISION 22 | C19: MECHANICAL WORK - PLUMBING | D19: =F19*H19 ->  | E19: الأعمال الميكانيكية - الأعمال الصحية | F19: القسم إثنين وعشرون
C30: TOTAL (SR) | D30: =F30*H30 -> 0 | E30: إجمالي الأعمال ريال سعودي
C32: VAT 5% (SR) | D32: =F32*H32 -> 0 | E32: ضريبة القيمة المضافة 5% ريال سعودي
C34: To Tender Summary (SR) | D34: =F34*H34 -> 0 | E34: إلى ملخص العطاء ريال سعودي
